Cogmind - Beta 9.6 @@@ ROGUE MODE // 2020.08.26 @ 21:20:32 Player: Cracklepappy Result: Destroyed by D-53 Grenadier with Mini Grenade Launcher Performance ------------- Evolutions (0) 0 Regions Visited (4) 800 Robots Destroyed (38) 190 Value Destroyed (394) 394 Prototype IDs (0) 0 Alien Tech Used (0) 0 Bonus (-83) -83 TOTAL SCORE: 1301 Bonus ------- Friendly Fire -83 Cogmind --------- Core Integrity 0/250 Matter 176/300 Energy 190/250 System Corruption 4% Temperature Cool (34) Movement Treading (200) Ox2 Location -9/Mines Parts ------- > --- POWER (1) -------- Ion Engine > --- PROPULSION (2) --- Improved Treads Improved Treads > --- UTILITY (2) ------ Humpback > --- WEAPON (2) ------- Beamcaster EMP Blaster > --- INVENTORY (24) --- Improved Ion Engine Improved Ion Engine Fission Core Light Treads Light Treads Light Treads Improved Treads Improved Treads Heat Sink Large Storage Unit Large Storage Unit High-capacity Storage Unit Humpback Small Battery (100) Large Battery (300) Improved Targeting Computer Core Shielding Power Shielding Light Armor Plating EM Pulse Gun Assault Rifle Light Cannon EMP Blaster Peak State ------------ > --- POWER ------------ Ion Engine > --- PROPULSION ------- Improved Treads Improved Treads > --- UTILITY ---------- Humpback > --- WEAPON ----------- Beamcaster EMP Blaster > --- INVENTORY -------- Improved Ion Engine Improved Ion Engine Fission Core Light Treads Light Treads Light Treads Improved Treads Improved Treads Heat Sink Large Storage Unit Large Storage Unit High-capacity Storage Unit Humpback Small Battery Large Battery Improved Targeting Computer Core Shielding Power Shielding Light Armor Plating EM Pulse Gun Assault Rifle Light Cannon EMP Blaster [Rating: 17] Favorites ----------- Power Ion Engine Engine Ion Engine Propulsion Improved Treads Treads Improved Treads Wheel Wheel Utility Humpback Device Improved Terrain Scanner Storage Humpback Weapon EMP Blaster Energy Gun EM Pulse Gun Energy Cannon Beam Cannon Ballistic Gun Assault Rifle Ballistic Cannon Light Cannon Launcher EMP Blaster Special Weapon Mining Laser Build | -11 -10 -10 -10 -9 ------- Run | Scr Mat Min Exi Min Slots Evolved . | . . . . . Power . | . . . . . Propulsion . | . . . . . Utility . | . . . . . Weapon . | . . . . . Parts Attached 28 | 8 8 2 8 2 Power 3 | 2 1 . . . Engine 3 | 2 1 . . . Core . | . . . . . Reactor . | . . . . . Propulsion 5 | 2 3 . . . Treads 3 | . 3 . . . Leg . | . . . . . Wheel 2 | 2 . . . . Hover . | . . . . . Flight . | . . . . . Utility 6 | 2 2 1 1 . Device 1 | 1 . . . . Storage 5 | 1 2 1 1 . Processor . | . . . . . Hackware . | . . . . . Protection . | . . . . . Artifact . | . . . . . Weapon 14 | 2 2 1 7 2 Energy Gun 4 | 1 . . 2 1 Energy Cannon 1 | . 1 . . . Ballistic Gun 2 | 1 . . 1 . Ballistic Cannon 2 | . . . 2 . Launcher 4 | . 1 1 1 1 Special Weapon 1 | . . . 1 . Impact Weapon . | . . . . . Slashing Weapon . | . . . . . Piercing Weapon . | . . . . . Special Melee Weapon . | . . . . . Unidentified Prototypes . | . . . . . Parts Lost 5 | . 3 . 1 1 Power 1 | . 1 . . . Propulsion 1 | . 1 . . . Utility 1 | . 1 . . . Weapon 2 | . . . 1 1 Highest Loss Streak 2 | . 2 . 1 1 Average Slot Usage (%) 90 | . 95 100 88 80 Engine 13 | . 12 14 14 14 Treads 25 | . 12 28 28 28 Wheel 2 | . 12 . . . Storage 20 | . 25 28 18 14 Energy Gun 6 | . 2 . 7 16 Energy Cannon 1 | . 10 . . . Ballistic Gun 5 | . 14 . 4 . Ballistic Cannon 4 | . . . 5 . Launcher 6 | . . 27 6 7 Special Weapon 2 | . . . 4 . Naked Turns . | . . . . . Heaviest Build 92 | 12 46 61 92 92 Greatest Support 46 | 26 46 46 46 46 Greatest Overweight (x) 4 | . 4 1 1 1 Average Overweight (x) . | . . . . 1 Largest Inventory Capacity 24 | 6 14 18 24 24 Average Capacity 19 | 5 9 15 22 24 Most Carried 24 | 6 14 18 24 24 Average Carried 18 | 3 9 15 21 23 Final Capacity 24 | 6 14 18 24 24 Final Carried 24 | 6 14 18 23 24 Class Distribution -------------------- 52% | Hauler-Mutant 47% | Mutant Dominant Class ---------------- Mutant | -10/Materials Mutant | -10/Mines Hauler-Mutant | -10/Exiles Hauler-Mutant | -9/Mines Resources | -11 -10 -10 -10 -9 ----------- Run | Scr Mat Min Exi Min Matter Collected 612 | 283 91 81 . 157 Remotely . | . . . . . Salvage Created 913 | 96 465 140 . 212 Parts 52 | 6 39 7 . . Haulers Intercepted . | . . . . . Recyclers Shooed 1 | . 1 . . . Parts Field Recycled . | . . . . . Retrieved Matter . | . . . . . Parts Self-Destructed . | . . . . . Prevented . | . . . . . Kills | -11 -10 -10 -10 -9 ------- Run | Scr Mat Min Exi Min Combat Hostiles Destroyed 32 | . 13 4 . 15 Guns 9 | . 6 . . 3 Cannons 7 | . 7 . . . AOE 15 | . . 3 . 12 Classes Destroyed 6 | 2 3 . . 1 Tunneler 1 | 1 . . . . Recycler 2 | 1 1 . . . Watcher 3 | . 3 . . . Swarmer 11 | . 9 2 . . Grunt 6 | . 4 2 . . Assembled 15 | . . . . 15 Best Kill Streak 15 | 2 4 2 . 15 Combat Bots Only 15 | . 3 2 . 15 Max Kills in Single Turn 4 | 1 1 2 . 4 Gunslinging . | . . . . . Exploded 4 | . . 2 . 4 Melee . | . . . . . Uniques/NPCs Destroyed . | . . . . . Combat | -11 -10 -10 -10 -9 -------- Run | Scr Mat Min Exi Min Damage Taken 1371 | . 505 105 330 431 Core 296 | . 98 27 88 83 Absorbed by Shields . | . . . . . Core Remaining (%) 100 | 100 . . . . Volleys Fired 143 | 3 53 7 62 18 Largest 2 | 2 2 2 1 2 Hottest 115 | 60 80 66 100 115 Shots Fired 201 | 6 106 8 62 19 Gun 100 | 6 66 . 19 9 Cannon 44 | . 40 . 4 . Launcher 35 | . . 8 17 10 Special 22 | . . . 22 . Kinetic 60 | 3 53 . 4 . Thermal 79 | 3 53 . 22 1 Explosive . | . . . . . Electromagnetic 62 | . . 8 36 18 Robot Hit Streak 11 | 5 11 3 . 3 Robot Miss Streak 6 | . 6 1 . 1 Penetration Max . | . . . . . Secondary Targets . | . . . . . Shots Hit Robots 83 | 5 65 3 . 10 Core Hits 61 | 3 24 5 . 29 Critical Hits 2 | . 2 . . . Critical Kills 2 | . 2 . . . Critical Parts Destroyed . | . . . . . Melee Attacks . | . . . . . Impact . | . . . . . Slashing . | . . . . . Piercing . | . . . . . Sneak Attacks . | . . . . . Combat Hostiles . | . . . . . Follow-up Attacks . | . . . . . Damage Inflicted 1971 | 52 793 253 . 873 Guns 428 | 52 322 . . 54 Cannons 471 | . 471 . . . Explosions 1072 | . . 253 . 819 Melee . | . . . . . Ramming . | . . . . . Kinetic 239 | 16 223 . . . Thermal 934 | 36 570 . . 328 Explosive . | . . . . . Electromagnetic 798 | . . 253 . 545 Impact . | . . . . . Slashing . | . . . . . Piercing . | . . . . . Highest Corruption 4 | . . 1 4 4 Average Corruption 1 | . . 1 1 4 Corruption Purged . | . . . . . Effects 41 | . . 1 35 5 Message Errors 10 | . . . 9 1 Matter Fused 9 | . . . 9 . Heat Flow Errors 6 | . . . 5 1 Energy Discharges 4 | . . . 3 1 Data Loss (minor) 8 | . . 1 5 2 Targeting Errors 4 | . . . 4 . Overload Shots . | . . . . . Overflow Damage 52 | . 16 . . 36 Projectiles 16 | . 16 . . . Explosions 36 | . . . . 36 Melee . | . . . . . Knockbacks . | . . . . . Impact . | . . . . . Kinetic . | . . . . . Secondary . | . . . . . Self-Inflicted Damage 90 | . . 19 24 47 Shots 9 | . . 2 2 5 Rammed . | . . . . . Targets Rammed . | . . . . . Kicked . | . . . . . Crushed . | . . . . . Highest Temperature 380 | 20 380 30 256 260 Average Temperature 100 | 15 147 15 51 114 Received Heat Transfer 159 | . 120 39 . . Effects 3 | . 3 . . . Shutdowns 2 | . 2 . . . Energy Bleed 1 | . 1 . . . Siege Activations . | . . . . . Robots Corrupted 1 | . . 1 . . Combat Hostiles 1 | . . 1 . . Parts Fried . | . . . . . Impact Corruptions . | . . . . . Robots Melted . | . . . . . Combat Hostiles . | . . . . . Parts Melted . | . . . . . Heat Transferred 1649 | 75 1224 . . 350 Parts Sabotaged . | . . . . . Parts Stolen . | . . . . . Parts Stripped . | . . . . . Power Chain Reactions 2 | . . . . 2 Missiles Intercepted . | . . . . . Alert | -11 -10 -10 -10 -9 ------- Run | Scr Mat Min Exi Min Peak Influence 282 | 10 282 174 . . Average Influence 120 | 2 145 129 . . Maximum Alert Level 1 | . 1 . . . Low Security (%) 91 | 100 86 100 . 100 Level 1 8 | . 13 . . . Level 2 . | . . . . . Level 3 . | . . . . . Level 4 . | . . . . . Level 5 . | . . . . . High Security . | . . . . . Max Security . | . . . . . Squads Dispatched 3 | . 3 . . . Investigation 1 | . 1 . . . Extermination . | . . . . . Reinforcement 2 | . 2 . . . Assault . | . . . . . Garrison . | . . . . . Intercept . | . . . . . Construction Impeded . | . . . . . Haulers Reinforced . | . . . . . Stealth | -11 -10 -10 -10 -9 --------- Run | Scr Mat Min Exi Min Distress Signals 1 | . 1 . . . Communications Jammed . | . . . . . Distress Signals . | . . . . . Times Spotted 53 | . 24 6 . 23 Peak Tracking Total 17 | . 5 3 . 17 Tactical Retreats 5 | . 3 1 . 1 Traps | -11 -10 -10 -10 -9 ------- Run | Scr Mat Min Exi Min Traps Triggered . | . . . . . Indirectly . | . . . . . Trap Hack Attempts . | . . . . . Triggered . | . . . . . Disarmed . | . . . . . Reprogrammed . | . . . . . Reused . | . . . . . Traps Extracted . | . . . . . Installed . | . . . . . Triggered . | . . . . . Machines | -11 -10 -10 -10 -9 ---------- Run | Scr Mat Min Exi Min Machines Disabled 6 | . . . 6 . Max in Single Turn 1 | . . . 1 . Machines Sabotaged . | . . . . . Garrisons Compromised . | . . . . . Overloaded Fab Kills . | . . . . . Fab Network Shutdowns . | . . . . . Hacking | -11 -10 -10 -10 -9 --------- Run | Scr Mat Min Exi Min Machines Accessed 7 | . 3 . 4 . Terminals 2 | . 2 . . . Fabricators . | . . . . . Repair Stations . | . . . . . Recycling Units 1 | . 1 . . . Scanalyzers . | . . . . . Garrison Access . | . . . . . Total Hacks 10 | . 6 . 4 . Successful 8 | . 4 . 4 . Failed 2 | . 2 . . . Catastrophic . | . . . . . Database Lockouts . | . . . . . Manual 8 | . 1 . 7 . Terminals 5 | . 5 . . . Fabricators . | . . . . . Repair Stations . | . . . . . Recycling Units 1 | . 1 . . . Scanalyzers . | . . . . . Garrison Access . | . . . . . Terminal Hacks 7 | . 3 . 4 . Record 4 | . . . 4 . Locate Traps 2 | . 2 . . . Zone Layout 1 | . 1 . . . Fabricator Hacks . | . . . . . Repair Station Hacks . | . . . . . Recycling Unit Hacks . | . . . . . Scanalyzer . | . . . . . Garrison Access Hacks . | . . . . . Unauthorized Hacks 1 | . 1 . . . Terminals . | . . . . . Fabricators . | . . . . . Repair Stations . | . . . . . Recycling Units 1 | . 1 . . . Tunnel 1 | . 1 . . . Scanalyzers . | . . . . . Garrison Access . | . . . . . Data Cores Recovered . | . . . . . Used . | . . . . . Hacking Detections 1 | . 1 . . . Full Trace Events . | . . . . . Feedback Events . | . . . . . Feedback Blocked . | . . . . . Robot Schematics Acquired . | . . . . . Robots Built . | . . . . . Matter . | . . . . . Time . | . . . . . Total Robot Build Rating . | . . . . . Part Schematics Acquired . | . . . . . Parts Built . | . . . . . Matter . | . . . . . Time . | . . . . . Total Part Build Rating . | . . . . . Parts Repaired . | . . . . . Time . | . . . . . Parts Recycled . | . . . . . Recycled Matter . | . . . . . Retrieved Matter . | . . . . . Retrieved Components . | . . . . . Parts Scanalyzed . | . . . . . Part Schematics Acquired . | . . . . . Parts Damaged . | . . . . . Bothacking | -11 -10 -10 -10 -9 ------------ Run | Scr Mat Min Exi Min Used RIF Installer . | . . . . . Robots Hacked . | . . . . . Non-combat . | . . . . . Combat . | . . . . . Robot Hacks Applied . | . . . . . Relay Couplers Released . | . . . . . Robots Rewired . | . . . . . Allies Hacked . | . . . . . Hacks Repelled . | . . . . . Allies | -11 -10 -10 -10 -9 -------- Run | Scr Mat Min Exi Min Total Allies . | . . . . . Largest Group . | . . . . . Highest-Rated Group . | . . . . . Highest-Rated Ally . | . . . . . Total Orders . | . . . . . Ally Attacks . | . . . . . Total Damage . | . . . . . Kills . | . . . . . Allies Corrupted . | . . . . . Allies Melted . | . . . . . Intel | -11 -10 -10 -10 -9 ------- Run | Scr Mat Min Exi Min Robot Analysis Total . | . . . . . Derelict Logs Recovered . | . . . . . Drone Launches . | . . . . . Drone Recoveries . | . . . . . Exploration | -11 -10 -10 -10 -9 ------------- Run | Scr Mat Min Exi Min Turns Passed 4219 | 70 746 284 3007 112 Spaces Moved 2209 | 49 476 144 1503 37 Core 1 | 1 . . . . Treads 1783 | . 99 144 1503 37 Legs . | . . . . . Wheels 425 | 48 377 . . . Hover . | . . . . . Flight . | . . . . . Fastest Speed 50 | 50 90 160 160 180 Average Speed 162 | 87 107 179 179 180 Slowest Speed 180 | 90 180 180 180 180 Overloaded Moves . | . . . . . Propulsion Burnouts . | . . . . . Robots Hopped . | . . . . . Cave-ins Triggered 1 | . . . 1 . Exploration Rate (%) 42 | 3 74 23 96 15 Regions Visited 4 Branch Regions 3 Pre-discovered Areas 1 | . 1 . . . Known Exits Taken . | . . . . . Unknown Exits Taken 4 | 1 1 1 1 . Scrap Searched . | . . . . . Spaces Dug 8 | . . . 8 . Terrain Destroyed 15 | . . . 12 3 Melee . | . . . . . Projectile 12 | . . . 12 . AOE 3 | . . . . 3 Actions | -11 -10 -10 -10 -9 --------- Run | Scr Mat Min Exi Min Total 2607 | 68 618 162 1697 62 Wait 166 | . 58 . 104 4 Move 2205 | 48 475 143 1502 37 Hop . | . . . . . Pick Up 50 | 8 15 7 19 1 Fast Attach 10 | 5 3 . 1 1 Attach 5 | 2 2 . 1 . Detach . | . . . . . Swap 13 | 1 3 2 6 1 Drop 15 | 1 9 3 2 . Fire 143 | 3 53 7 62 18 Melee . | . . . . . Ram . | . . . . . Kick . | . . . . . Crush . | . . . . . Escape Stasis . | . . . . . Rewire . | . . . . . Trap . | . . . . . Miscellaneous . | . . . . . Route ------- -11/Scrapyard -10/Materials (discovered 5 exits: [*Mat x3] / [*Min x2]) -10/Mines (discovered 2 exits: [*Mat] / *Exi) -10/Exiles (discovered 2 exits: [*Min x2]) -9/Mines History --------- Turn | Location | Event 12 | -11/Scrapyard | Discovered new exit (range 15) 71 | -11/Scrapyard | Entered Materials 262 | -10/Materials | Discovered new exit (range 7) 304 | -10/Materials | Build established: Mutant 418 | -10/Materials | Discovered new exit (range 3) 539 | -10/Materials | Discovered new exit (range 4) 610 | -10/Materials | Discovered new exit (range 12) 611 | -10/Materials | Discovered new exit (range 14) 817 | -10/Materials | Entered Mines 853 | -10/Mines | Discovered new exit (range 11) 901 | -10/Mines | Deemed a non-threat by the Exiles lab entrance 901 | -10/Mines | Discovered new exit (range 5) 928 | -10/Mines | Joined a pair of Derelicts in attacking an 0b10 outpost 1101 | -10/Mines | Entered Exiles 1101 | -10/Exiles | Found Exiles lab abandoned 2138 | -10/Exiles | Discovered new exit (range 14) 2311 | -10/Exiles | Build established: Hauler-Mutant 2784 | -10/Exiles | Discovered new exit (range 14) 3136 | -10/Exiles | Crushed by falling debris 3136 | -10/Exiles | Core integrity fell below 50% 3136 | -10/Exiles | Core integrity fell below 20% 4108 | -10/Exiles | Entered Mines 4109 | -9/Mines | Assembled infested the area 4114 | -9/Mines | Assisted by a Guerilla fighting off Assembled 4182 | -9/Mines | Destroyed 15 combat bots 4220 | -9/Mines | Destroyed by D-53 Grenadier with Mini Grenade Launcher Last Messages --------------- 04147_ as-21276 destroyed. 04148_ EE3HXTFAH3>8>SQX20BT4TJU06 /UODUY> 04149_ as-18976 destroyed. 04153_ Acquired 20 matter. 04154_ EMP Blaster destroyed. 04159_ as-06633 misfires. 04161_ as-06633 destroyed. 04163_ System corrupted: Component data lost. 04163_ Acquired 16 matter. 04168_ Acquired Fission Core. 04169_ Acquired 14 matter. 04171_ Acquired 70 matter. 04191_ System corrupted: Heat flow error (+280). 04191_ Acquired Unknown Energy Gun. 04191_ Identified Beamcaster. 04194_ Acquired 28 matter. 04196_ Acquired 9 matter. 04210_ System corrupted: Energy discharge (-82). 04214_ C-30 ARC bursts open, deploying its payload. 04214_ D-53 Grenadier unfolds itself. Map ----- +----------------------------------------------------+ | ????????????? ???????????????????????????? | | ????????????? ???????????????????????????? | | ????????????? ???????????????????????????? | | ????????????? ???????????????????????????? | | ??????##????? ???????????????????????????? | | ??????# ????? ???????????????????????????? | | ??????# ????? ???????????????????????????? | | ??????# #???#%#??????????????????????????? | | ??###?#!#???# #??????????????????????????? | | ?## ##%##??# #??????????????????????????? | | ?# %* ##?# #??????????????????????????? | | ?# #?# #???#####??????????????????? | | ??# #?# #?## ##?????????????????? | | ????# ### ##" ####??????????????? | | ?????# = ???????????? | | ????## == = % #??????????????????? | | ????# ! %dd### #??????????????????? | | ????# % % % ;;#????????????????????????? | | ????## % #???????????????????????? | | ????## %# # ###??????????# ?????????? | | ???## ## < #???????? ?????????? | | ??## ### ###???? #????????? | | ??# ## ### #?????????? | | ??# ### #??????????? | | ??## ###?## #???????????? | | ???####????## @ #????????????? | | ????????????# ####????????????? | | ????????????# ##???????????????? | | ????????????## #????????????????? | | ?????????????## #????????????????? | | ??????????????##### ##????????????????? | | ???????????????????# ##?????????????????? | | ????????????????????###??????????????????? | | ?????????????????????????????????????????? | | ?????????????????????????????????????????? | | | | | | | | | | | | | | | | | | | | | | | | | | | | | | | +----------------------------------------------------+ Best States ------------- Heat Dissipation 25 Energy Generation 10 Energy Capacity 250 Matter Stores 300 Matter Capacity 300 Sight Range 16 Terrain Scan Range 16 Terrain Scan Density 10 Evasion (%) 44 Recoil Reduction 2 Item Schematics ----------------- None Robot Schematics ------------------ None Fabricated ------------ Nothing Alien Tech Used ----------------- None Achievements -------------- None Challenges ------------ None Game ------ Seed InsulatedSurveybotCasing Manual? 0 Play Time 00:23:26 Cumulative 138.3 hours Start 2020.08.26 @ 20:52:36 End 2020.08.26 @ 21:20:32 Sessions 1 Manual Loads 0 Difficulty Rogue Special Mode None Game No. 167 Rogue 167 Adventurer 0 Explorer 0 Win Type - Total 2 Types 2/0/0/0/0/0/0 Lore% 51 Gallery% 68 Achievement% 47 Wizard Run 0 Options --------- ASCII 0 Keyboard 0 Movement Numpad Keybinds 0 Fullscreen 2 Font 24/Smallcaps Map View 76x50 Tactical HUD 1 Map Filters NONE Filters NONE Steam 1 RUN: 91b2dbd3-48d1-4712-9802-05c48247a9ce